bitfinex-derivatives/quotes_SOLF0:USTF0_20251020
["timestamp","ask_amount","ask_price","bid_price","bid_amount"]
[1760923228257,4.08501317,185.39,185.33,6.94873768]
[1760923228449,4.08501317,185.38,185.33,6.94873768]
[1760923228654,4.08501317,185.37,185.34,2.63]
[1760923228858,4.99143845,185.41,185.34,2.63]
[1760923229157,4.08785303,185.4,185.34,2.63]
[1760923229359,4.08785303,185.39,185.34,2.63]
[1760923229562,4.08785303,185.38,185.34,2.63]
[1760923229857,4.99143845,185.42,185.34,2.63]
[1760923230053,4.08938304,185.41,185.34,2.63]
[1760923230256,4.08938304,185.4,185.34,2.63]
[1760923230451,6.40143845,185.38,185.3,2.63]
[1760923230656,4.08938304,185.37,185.3,2.63]
[1760923230857,4.08938304,185.36,185.3,2.63]
[1760923231057,4.08938304,185.35,185.29,2.63]
[1760923231360,1.41,185.38,185.29,2.63]
[1760923231560,4.09252035,185.37,185.29,2.63]
[1760923231858,4.09252035,185.36,185.29,2.63]
[1760923232054,4.09252035,185.35,185.29,7.4856]
[1760923232249,4.09252035,185.34,185.3,2.63]
[1760923232455,6.40143845,185.38,185.3,2.63]
[1760923232655,1.41,185.36,185.3,2.63]
[1760923232860,6.18752142,185.35,185.27,52.6263]
[1760923233062,4.09328374,185.34,185.27,52.6263]
[1760923233263,4.09328374,185.33,185.29,2.63]
[1760923233564,4.99143845,185.38,185.29,2.63]
[1760923233765,4.09314336,185.37,185.29,2.63]
[1760923234065,4.09314336,185.36,185.29,2.63]
[1760923234253,4.09314336,185.35,185.31,2.63]
[1760923234457,4.09314336,185.34,185.31,2.63]
[1760923234765,8.49567613,185.39,185.31,2.63]
[1760923234966,4.09365676,185.38,185.31,2.63]
[1760923235160,4.09365676,185.37,185.31,2.63]
[1760923235361,5.50365676,185.36,185.31,2.63]
[1760923235560,4.09365676,185.35,185.31,2.63]
[1760923235864,4.09365676,185.34,185.31,2.63]
[1760923236066,1.41,185.36,185.31,2.63]
[1760923236259,4.09464972,185.35,185.31,2.63]
[1760923236459,4.09472814,185.34,185.31,2.63]
[1760923236663,1.41,185.36,185.31,2.63]
[1760923236864,4.09472814,185.35,185.31,2.63]
[1760923237063,4.09472814,185.34,185.31,2.63]
[1760923237265,1.41,185.36,185.31,2.63]
[1760923237565,4.09481085,185.35,185.31,2.63]
[1760923237763,4.09481085,185.34,185.31,2.63]
[1760923237965,1.41,185.36,185.31,2.63]
[1760923238162,4.09474028,185.35,185.31,2.63]
[1760923238361,1.41,185.36,185.31,2.63]
[1760923238562,4.09500035,185.35,185.3,4.8555]
[1760923238759,1.41,185.36,185.32,2.63]
[1760923238964,4.0950216,185.35,185.32,2.63]
[1760923239164,4.09552846,185.34,185.32,2.63]
[1760923239464,5.01141726,185.38,185.31,2.63]
[1760923239659,4.09610055,185.37,185.31,7.4851]
[1760923239855,4.09610055,185.36,185.31,4.8551]
[1760923240058,4.09610055,185.35,185.31,4.8551]
[1760923240254,4.09610055,185.34,185.32,2.63]
[1760923240454,5.01141726,185.38,185.32,2.63]
[1760923240760,4.09744162,185.37,185.31,7.4851]
[1760923240960,4.09744162,185.36,185.31,4.8551]
[1760923241161,4.09744162,185.35,185.31,4.8551]
[1760923241364,4.09744162,185.34,185.32,2.63]
[1760923241564,5.01141726,185.38,185.32,2.63]
[1760923241565,5.01141726,185.38,185.32,7.4848]
[1760923241867,4.09885126,185.37,185.32,2.63]
[1760923242067,4.09885126,185.36,185.32,2.63]
[1760923242269,5.01141726,185.41,185.35,2.09423768]
[1760923242469,4.09987091,185.4,185.36,2.63]
[1760923242768,1.41,185.38,185.31,6.94953768]
[1760923242968,4.09987091,185.37,185.31,4.8553]
[1760923243163,4.09987091,185.36,185.32,2.63]
[1760923243370,1.41,185.38,185.32,2.63]
[1760923243564,4.10157895,185.37,185.31,7.4853]
[1760923243775,1.41,185.38,185.33,2.63]
[1760923244070,1.41,185.36,185.33,2.63]
[1760923244277,3.50423768,185.39,185.33,2.63]
[1760923244569,5.51369072,185.38,185.33,2.63]
[1760923244765,5.51369072,185.37,185.33,2.63]
[1760923244965,4.10369072,185.36,185.33,2.63]
[1760923245159,1.41,185.37,185.33,2.63]
[1760923245368,4.09742848,185.36,185.33,2.63]
[1760923245668,1.41,185.37,185.34,2.63]
[1760923245873,4.09764756,185.36,185.34,2.63]
[1760923246063,1.41,185.37,185.34,2.63]
[1760923246367,4.09764756,185.36,185.34,2.63]
[1760923246567,1.41,185.37,185.34,2.63]
[1760923246768,4.0984754,185.36,185.34,2.63]
[1760923246971,1.41,185.37,185.34,2.63]
[1760923247171,1.4,185.41,185.32,2.69]
[1760923247367,4.09792367,185.4,185.32,2.69]
[1760923247569,4.09792367,185.39,185.34,2.69]
[1760923247765,4.09792367,185.38,185.34,2.69]
[1760923247969,1.4,185.41,185.34,7.5442]
[1760923248170,4.0986393,185.4,185.34,7.5442]
[1760923248377,4.0986393,185.39,185.35,2.69]
[1760923248563,4.0986393,185.38,185.34,4.8542]
[1760923248767,1.4,185.41,185.34,7.5442]
[1760923248969,4.10028231,185.4,185.34,7.5442]
[1760923249174,4.10028231,185.39,185.35,2.69]
[1760923249472,4.10028231,185.38,185.34,4.8542]
[1760923249673,1.4,185.41,185.35,2.69]
[1760923249869,4.10130257,185.4,185.34,7.5442]
[1760923250073,4.10130257,185.39,185.34,4.8542]
[1760923250275,4.10130257,185.38,185.35,2.69]
[1760923250477,4.10130257,185.37,185.34,4.8542]
[1760923250669,11.26381726,185.42,185.35,2.69]
[1760923250868,4.10256558,185.41,185.35,2.69]
[1760923251077,4.10256558,185.4,185.34,4.8542]
[1760923251263,4.10256558,185.39,185.34,4.8542]
[1760923251469,4.10256558,185.38,185.34,4.8542]
[1760923251670,11.26381726,185.42,185.35,2.69]
[1760923251871,1.4,185.4,185.32,4.8549]
[1760923252179,4.1037441,185.39,185.33,2.69]
[1760923252380,4.1037441,185.38,185.32,7.5449]
[1760923252681,4.1037441,185.37,185.33,2.69]
[1760923252975,1.4,185.4,185.33,2.69]
[1760923253179,4.10532268,185.39,185.33,2.69]
[1760923253376,4.10532268,185.38,185.31,2.69]
[1760923253676,4.10532268,185.37,185.31,2.69]
[1760923253871,4.10532268,185.36,185.32,2.09423768]
[1760923254072,5.01141726,185.41,185.33,2.69]
[1760923254372,9.11799972,185.4,185.33,2.69]
[1760923254575,4.10658246,185.39,185.33,2.69]
[1760923254773,4.10658246,185.38,185.33,2.69]
[1760923254970,4.10658246,185.37,185.33,7.5446]
[1760923255176,4.10658246,185.36,185.34,2.69]
[1760923255377,5.01141726,185.4,185.34,2.69]
[1760923255578,4.1088757,185.39,185.33,4.8546]
[1760923255778,4.1088757,185.38,185.34,2.69]
[1760923255973,4.1088757,185.37,185.33,4.8546]
[1760923256179,4.1088757,185.36,185.34,2.69]
[1760923256478,5.01141726,185.4,185.33,7.5446]
[1760923256679,4.11011992,185.39,185.33,7.5446]
[1760923256978,4.11011992,185.38,185.33,4.8546]
[1760923257177,4.11011992,185.37,185.33,4.8546]
[1760923257480,4.11011992,185.36,185.35,2.69]
[1760923260180,4.11011992,185.36,185.32,4.8549]
[1760923260382,5.51132705,185.35,185.32,7.5449]
[1760923260582,4.11132705,185.34,185.32,7.5449]
[1760923260780,4.11132705,185.33,185.32,7.5449]
[1760923261978,2.09423768,185.37,185.33,2.69]
[1760923262180,4.11195518,185.36,185.33,2.69]
[1760923262482,4.11195518,185.35,185.33,2.69]
[1760923262683,4.11195518,185.34,185.33,2.69]
[1760923265686,4.11195518,185.34,185.32,4.8549]
[1760923265886,4.11195518,185.33,185.32,4.8549]
[1760923266283,4.11195518,185.33,185.3,2.69]
[1760923266284,5.51195518,185.33,185.3,2.69]
[1760923266491,6.20619286,185.32,185.26,2.69]
[1760923266687,1.4,185.3,185.26,2.69]
[1760923266988,4.11195518,185.29,185.26,2.69]
[1760923267188,1.4,185.3,185.26,2.69]
[1760923267391,4.11514492,185.29,185.26,2.69]
[1760923267585,4.11514492,185.28,185.27,4.8562]
[1760923267790,4.11514492,185.28,185.27,7.5462]
[1760923268388,1.4,185.3,185.27,2.69]
[1760923268584,4.11405016,185.29,185.24,47.79]
[1760923268786,5.51405016,185.28,185.24,47.79]
[1760923268985,4.11405016,185.27,185.24,47.79]
[1760923269186,1.4,185.28,185.24,47.79]
[1760923269686,1.4,185.28,185.24,52.6468]
[1760923269885,1.4,185.28,185.25,2.69]
[1760923270086,5.01141726,185.32,185.25,2.69]
[1760923270392,5.51175715,185.31,185.26,7.5465]
[1760923270590,4.11175715,185.3,185.26,7.5465]
[1760923270790,4.11175715,185.29,185.26,7.5465]
[1760923270991,4.11175715,185.28,185.26,7.5465]
[1760923271185,3.49423768,185.32,185.26,7.5465]
[1760923271385,5.51057852,185.31,185.26,7.5465]
[1760923271586,4.11057852,185.3,185.26,7.5465]
[1760923271783,7.10565494,185.34,185.28,2.89]
[1760923272081,4.11020921,185.33,185.25,2.89]
[1760923272286,4.11020921,185.32,185.25,2.89]
[1760923272585,4.11020921,185.31,185.25,2.89]
[1760923272786,2.09423768,185.32,185.25,2.89]
[1760923273091,4.10995535,185.31,185.24,47.99]
[1760923273290,4.10995535,185.3,185.24,47.99]
[1760923273491,4.10995535,185.29,185.25,2.89]
[1760923273688,2.09423768,185.32,185.25,45.1]
[1760923273890,4.10967667,185.31,185.25,45.1]
[1760923274093,4.10967667,185.3,185.26,4.8565]
[1760923274288,4.10967667,185.29,185.27,2.89]
[1760923274495,3.49423768,185.32,185.27,2.89]
[1760923274690,4.10930895,185.31,185.27,2.89]
[1760923274994,4.10930895,185.3,185.27,2.89]
[1760923275195,1.4,185.31,185.27,2.89]
[1760923275400,4.11816729,185.3,185.25,45.1]
[1760923275593,1.4,185.34,185.26,2.89]
[1760923275898,4.11793776,185.33,185.26,2.89]
[1760923276096,4.11793776,185.32,185.26,2.89]
[1760923276398,4.11793776,185.31,185.26,2.89]
[1760923276694,1.4,185.34,185.3,2.89]
[1760923276994,5.51779738,185.33,185.3,2.89]
[1760923277194,4.11779738,185.32,185.3,2.89]
[1760923277393,4.11779738,185.31,185.3,2.89]
[1760923279005,1.39,185.35,185.32,2.63]
[1760923279200,4.11705218,185.34,185.32,2.63]
[1760923279498,4.11705218,185.33,185.32,2.63]
[1760923280196,5.50705218,185.33,185.31,4.8551]
[1760923280500,6.40141726,185.37,185.31,4.8551]
[1760923280698,4.11718625,185.36,185.32,2.63]
[1760923280995,6.62067136,185.39,185.33,4.8545]
[1760923280996,4.11718625,185.35,185.33,4.8545]
[1760923281196,4.11718625,185.34,185.28,2.63]
[1760923281398,1.39,185.37,185.28,2.63]
[1760923281698,4.11677907,185.36,185.28,2.63]
[1760923281893,4.11677907,185.35,185.28,2.63]
[1760923282101,1.39,185.37,185.31,4.8552]
[1760923282301,5.5065939,185.36,185.31,7.4852]
[1760923282497,4.1165939,185.35,185.32,4.8547]
[1760923282701,1.39,185.36,185.32,2.63]
[1760923282901,4.11650492,185.35,185.32,2.63]
[1760923283102,1.39,185.36,185.32,2.63]
[1760923283304,4.11661826,185.35,185.32,2.63]
[1760923283500,1.39,185.36,185.32,2.63]
[1760923283691,4.11642012,185.35,185.32,2.63]
[1760923283894,1.39,185.36,185.32,2.63]
[1760923284102,4.11641954,185.35,185.33,4.8544]
[1760923284301,4.11657943,185.34,185.31,45.1]
[1760923284499,4.11657943,185.33,185.31,45.1]
[1760923284802,1.39,185.34,185.31,45.1]
[1760923285101,4.11680183,185.33,185.31,45.1]
[1760923285301,1.39,185.34,185.31,45.1]
[1760923285604,4.11683445,185.33,185.31,45.1]
[1760923285800,1.39,185.34,185.31,45.1]
[1760923286103,4.11683445,185.33,185.31,47.73]
[1760923286399,1.39,185.34,185.31,45.1]
[1760923286704,1.39,185.32,185.31,45.1]
[1760923286906,5.50693168,185.32,185.31,45.1]
[1760923287398,5.50693168,185.32,185.22,107.15351677]
[1760923287399,8.47167375,185.32,185.14,2.63]
[1760923287601,1.39,185.29,185.16,2.63]
[1760923287806,4.11693168,185.28,185.2,4.8579]
[1760923287999,4.11693168,185.27,185.2,7.4879]
[1760923288196,4.11693168,185.26,185.22,2.63]
[1760923288397,5.01141726,185.32,185.24,2.63]
[1760923288606,9.20923759,185.31,185.24,2.63]
[1760923288806,9.20923759,185.3,185.24,2.63]
[1760923289001,4.27135987,185.29,185.24,2.63]
[1760923289309,4.27135987,185.28,185.23,45.1]
[1760923289499,5.01141726,185.32,185.24,2.63]
[1760923289702,9.20798454,185.31,185.24,7.4868]
[1760923289905,4.27078369,185.3,185.24,7.4868]
[1760923290101,4.27078369,185.29,185.25,2.63]
[1760923290299,5.66078369,185.28,185.24,4.8568]
[1760923290500,1.39,185.26,185.23,45.1]
[1760923292508,9.67615933,185.3,185.23,52.5873]
[1760923292703,9.20372964,185.29,185.23,52.5873]
[1760923292904,5.65891404,185.28,185.23,52.5873]
[1760923293104,5.65891404,185.27,185.23,52.5873]
[1760923293310,4.26891404,185.26,185.23,52.5873]
[1760923293512,1.39,185.27,185.23,52.5873]
[1760923293712,4.26838025,185.26,185.23,52.5873]
[1760923293908,4.26842294,185.25,185.23,52.5873]
[1760923294105,1.39,185.27,185.23,52.5873]
[1760923294301,4.26773369,185.26,185.23,52.5873]
[1760923294506,8.28615933,185.3,185.23,45.1]
[1760923294803,18.3478706,185.29,185.23,45.1]
[1760923295007,10.59173961,185.28,185.23,45.1]
[1760923295206,1.39,185.26,185.23,45.1]
[1760923295403,5.65787286,185.25,185.23,45.1]
[1760923295603,1.39,185.25,185.23,45.1]
[1760923295815,1.39,185.27,185.23,45.1]
[1760923296012,4.26750327,185.26,185.23,45.1]
[1760923296213,4.26750327,185.25,185.23,45.1]
[1760923296411,5.01141726,185.3,185.24,2.63]
[1760923296604,4.26656915,185.29,185.24,2.63]
[1760923296812,4.26624299,185.28,185.23,45.1]
[1760923297114,4.93145039,185.31,185.25,4.8568]
[1760923297409,4.21876335,185.3,185.25,4.8568]
[1760923297611,4.21876335,185.29,185.26,2.63]
[1760923297811,4.21876335,185.28,185.26,2.63]
[1760923298117,4.9319246,185.31,185.25,7.4868]
[1760923298314,4.21897953,185.3,185.26,2.63]
[1760923298508,5.52326296,185.32,185.26,2.63]
[1760923298509,4.21897953,185.29,185.26,2.63]
[1760923298710,4.21897953,185.28,185.26,2.63]
[1760923298907,4.93201915,185.31,185.26,4.8563]
[1760923299210,4.21910003,185.3,185.24,2.63]
[1760923299413,4.93197964,185.33,185.24,2.63]
[1760923299614,15.55266027,185.32,185.24,2.63]
[1760923299817,9.15124301,185.31,185.24,2.63]
[1760923300018,4.2192653,185.3,185.24,2.63]
[1760923300213,9.59434585,185.29,185.23,45.1]
[1760923300418,5.37508055,185.28,185.23,45.1]
[1760923300721,1.39,185.32,185.24,2.63]
[1760923300922,9.56203667,185.31,185.24,2.63]
[1760923301119,9.56203667,185.3,185.26,2.63]
[1760923301313,1.39,185.32,185.26,2.63]
[1760923301314,5.37531025,185.29,185.26,2.63]
[1760923301517,5.37531025,185.28,185.26,2.63]
[1760923301726,8.28615933,185.34,185.27,2.63]
[1760923301727,5.01141726,185.34,185.27,2.63]
[1760923301922,9.56188597,185.33,185.29,2.63]
[1760923302122,5.01141726,185.37,185.29,2.63]
[1760923302123,5.37514059,185.32,185.29,2.63]
[1760923302424,1.39,185.38,185.32,4.8547]
[1760923302626,9.41396936,185.37,185.33,2.63]
[1760923302818,5.01141726,185.39,185.33,2.63]
[1760923302819,9.41396936,185.36,185.33,2.63]
[1760923303025,10.80396936,185.35,185.25,2.63]
[1760923303322,19.95094003,185.34,185.26,45.1]
[1760923303518,9.41396936,185.33,185.26,45.1]
[1760923303719,1.39,185.31,185.26,45.1]
[1760923303926,1.39,185.29,185.26,45.1]
[1760923304119,5.2416251,185.28,185.26,45.1]
[1760923304319,3.27474207,185.32,185.26,45.1]
[1760923304628,1.39,185.29,185.26,45.1]
[1760923304921,9.42188663,185.28,185.26,45.1]
[1760923305124,4.17553179,185.27,185.26,45.1]
[1760923306025,9.42243543,185.27,185.26,45.1]
[1760923308126,10.83243543,185.27,185.26,45.1]
[1760923308326,15.84385269,185.27,185.21,4.8578]
[1760923308526,1.41,185.25,185.21,7.6378]
[1760923308726,9.42243543,185.24,185.21,7.6378]
[1760923308928,4.17553179,185.23,185.21,2.78]
[1760923309124,5.01141726,185.27,185.21,2.78]
[1760923309425,10.96199614,185.26,185.21,2.78]
[1760923309724,9.55199614,185.25,185.21,2.78]
[1760923309918,9.55199614,185.24,185.21,2.78]
[1760923310118,9.55199614,185.23,185.21,2.78]
[1760923310317,6.42141726,185.27,185.2,49.9581]
[1760923310517,9.55057735,185.26,185.2,49.9581]
[1760923310721,10.96057735,185.25,185.2,52.7381]
[1760923310923,9.55057735,185.24,185.2,52.7381]
[1760923311125,9.55057735,185.23,185.2,52.7381]
[1760923311329,1.41,185.25,185.21,2.78]
[1760923311527,9.54967257,185.24,185.21,2.78]
[1760923311832,9.54967257,185.23,185.21,2.78]
[1760923312123,5.01141726,185.28,185.22,4.8575]
[1760923312328,10.95865626,185.27,185.23,2.78]
[1760923312524,9.54865626,185.26,185.23,2.78]
[1760923312730,9.54865626,185.25,185.23,2.78]
[1760923312927,9.54865626,185.24,185.23,2.78]
[1760923313523,1.41,185.28,185.23,2.78]
[1760923313725,9.53105422,185.27,185.22,4.8575]
[1760923313929,1.41,185.28,185.23,2.78]
[1760923313930,9.53105422,185.26,185.23,2.78]
[1760923314127,9.53105422,185.25,185.22,4.8575]
[1760923314327,1.41,185.28,185.23,2.78]
[1760923314533,10.94042901,185.27,185.23,2.78]
[1760923314829,9.53042901,185.26,185.24,2.78]
[1760923315033,9.53042901,185.25,185.24,2.78]
[1760923317130,9.53042901,185.25,185.22,4.8575]
[1760923317335,5.01141726,185.29,185.22,4.8575]
[1760923317531,9.51486585,185.28,185.22,4.8575]
[1760923317736,9.51486585,185.27,185.23,2.78]
[1760923317937,9.51486585,185.26,185.25,2.78]
[1760923318137,6.42141726,185.31,185.24,4.8568]
[1760923318433,18.65976607,185.3,185.24,4.8568]
[1760923318626,1.41,185.28,185.24,4.8568]
[1760923318826,1.41,185.26,185.22,7.6375]
[1760923319033,4.27024032,185.25,185.22,7.6375]
[1760923319240,1.41,185.26,185.22,7.6375]
[1760923319531,4.27032429,185.25,185.22,7.6375]
[1760923319739,1.41,185.26,185.22,7.6375]
[1760923320037,9.5143553,185.25,185.22,7.6375]
[1760923320238,1.41,185.26,185.22,7.6375]
[1760923320437,9.51404823,185.25,185.22,7.6375]
[1760923320636,9.51416828,185.24,185.2,49.958]
[1760923320830,1.41,185.27,185.21,2.78]
[1760923321134,5.01141726,185.28,185.17,2.78]
[1760923321135,1.41,185.24,185.17,2.78]
[1760923321333,9.5141699,185.23,185.17,2.78]
[1760923321636,9.5141699,185.23,185.16,45.1]
[1760923321637,1.41,185.21,185.16,45.1]
[1760923321829,1.41,185.19,185.16,45.1]
[1760923322026,1.41,185.22,185.16,45.1]
[1760923322236,1.41,185.2,185.16,45.1]
[1760923322431,1.41,185.18,185.16,45.1]
[1760923322635,1.41,185.22,185.16,47.88]
[1760923322833,1.41,185.2,185.16,45.1]
[1760923323037,5.67895574,185.19,185.16,45.1]
[1760923323329,1.41,185.19,185.16,45.1]
[1760923323531,9.89541343,185.26,185.16,45.1]
[1760923323532,9.23132501,185.25,185.17,2.78]
[1760923323736,9.5078861,185.24,185.17,2.78]
[1760923323934,9.5078861,185.23,185.17,2.78]
[1760923324137,9.5078861,185.22,185.16,52.7392]
[1760923324335,1.41,185.2,185.16,47.88]
[1760923325840,10.64083402,185.25,185.16,47.88]
[1760923326040,9.50591108,185.24,185.16,47.88]
[1760923326240,9.50591108,185.23,185.16,47.88]
[1760923326435,9.50591108,185.22,185.16,47.88]
[1760923326632,9.50591108,185.21,185.17,2.78]
[1760923326841,6.42141726,185.25,185.17,2.78]
[1760923327036,9.50572731,185.24,185.17,2.78]
[1760923327237,9.50572731,185.23,185.17,2.78]
[1760923327437,9.50572731,185.22,185.17,2.78]
[1760923327639,9.50572731,185.21,185.17,2.78]
[1760923327841,6.42141726,185.25,185.17,2.78]
[1760923328041,9.50665229,185.24,185.17,2.78]
[1760923328242,9.50665229,185.23,185.17,2.78]
[1760923328543,9.50665229,185.22,185.16,49.9589]
[1760923328738,4.26670369,185.21,185.16,49.9589]
[1760923328943,5.62987051,185.25,185.17,2.78]
[1760923329143,9.50815351,185.24,185.17,2.78]
[1760923329439,9.50815351,185.23,185.17,2.78]
[1760923329641,9.50815351,185.22,185.17,2.78]
[1760923329840,9.50815351,185.21,185.16,49.9589]
[1760923330143,6.42141726,185.25,185.17,2.78]
[1760923330339,9.51146783,185.24,185.17,2.78]
[1760923330534,1.41,185.22,185.16,45.1]
[1760923330739,1.41,185.2,185.16,45.1]
[1760923330935,1.41,185.23,185.16,45.1]
[1760923331140,1.41,185.21,185.16,45.1]
[1760923331341,1.41,185.19,185.16,45.1]
[1760923331649,1.41,185.17,185.11,2.78]
[1760923331940,1.41,185.17,185.11,47.9]
[1760923332346,8.28615933,185.21,185.11,47.9]
[1760923332549,10.8166944,185.2,185.11,47.9]
[1760923332741,9.4066944,185.19,185.11,47.9]
[1760923332943,9.4066944,185.18,185.11,45.12]
[1760923333238,1.41,185.23,185.12,2.72]
[1760923333543,9.4035816,185.22,185.12,2.72]
[1760923333842,9.4035816,185.21,185.12,2.72]
[1760923334047,4.26844245,185.2,185.12,2.72]
[1760923334348,1.41,185.23,185.12,2.72]
[1760923334646,9.40339719,185.22,185.12,2.72]
[1760923334846,4.26834114,185.21,185.12,2.72]
[1760923335040,1.41,185.23,185.11,48.39474207]
[1760923335041,4.26834114,185.2,185.17,2.72]
[1760923335348,5.66864806,185.19,185.16,45.12]
[1760923335548,5.66864806,185.18,185.16,45.12]
[1760923335748,1.41,185.18,185.16,45.12]
[1760923337346,5.13328679,185.21,185.16,45.12]
[1760923337645,9.39052326,185.2,185.16,47.81]
[1760923337946,1.41,185.21,185.16,47.81]
[1760923338147,4.25701792,185.2,185.16,47.81]
[1760923338342,1.41,185.21,185.16,47.81]
[1760923338645,9.38924455,185.2,185.16,47.81]
[1760923338949,4.25664426,185.19,185.16,47.81]
[1760923339249,1.41,185.23,185.16,47.81]
[1760923339250,1.41,185.22,185.16,45.12]
[1760923339443,1.41,185.19,185.16,45.12]
[1760923339639,4.25640242,185.18,185.16,45.12]
[1760923339842,1.41,185.19,185.16,45.12]
[1760923340048,4.25647526,185.18,185.16,45.12]
[1760923340246,9.86871726,185.23,185.16,45.12]
[1760923340448,1.41,185.2,185.16,45.12]
[1760923340748,1.41,185.18,185.12,45.12]
[1760923340949,4.25583218,185.17,185.13,2.69]
[1760923341148,1.41,185.18,185.13,2.69]
[1760923341344,6.42141726,185.22,185.14,2.69]
[1760923341540,9.38644422,185.21,185.14,2.69]
[1760923341746,9.38644422,185.2,185.14,2.69]
[1760923341951,6.42141726,185.25,185.18,2.69]
[1760923342141,9.38427163,185.24,185.18,2.69]
[1760923342345,9.38435563,185.23,185.18,2.69]
[1760923342546,56.42541343,185.29,185.17,45.12]
[1760923342547,5.01141726,185.28,185.21,2.69]
[1760923342749,9.38397877,185.27,185.21,47.81]
[1760923342950,9.38397877,185.26,185.22,2.69]
[1760923343146,9.38397877,185.25,185.22,2.69]
[1760923343346,4.25445163,185.24,185.21,45.12]
[1760923343547,5.01141726,185.28,185.22,2.69]
[1760923343744,10.79447459,185.27,185.22,7.5472]
[1760923343949,4.25471437,185.26,185.22,4.8572]
[1760923344253,6.42141726,185.31,185.24,7.547]
[1760923344453,9.3847178,185.3,185.25,45.12]
[1760923344649,5.01141726,185.34,185.26,2.69]
[1760923344956,9.38265238,185.33,185.26,2.69]
[1760923345154,9.38265238,185.32,185.3,2.69]
[1760923345456,5.01141726,185.37,185.31,47.81]
[1760923345651,9.37969153,185.36,185.32,2.69]
[1760923345852,9.37969153,185.35,185.32,2.69]
[1760923346156,1.41,185.4,185.32,2.69]
[1760923346357,9.37372538,185.39,185.32,2.69]
[1760923346557,9.37372538,185.38,185.32,2.69]
[1760923346757,4.25091716,185.37,185.34,2.69]
[1760923346951,4.25091716,185.36,185.35,2.69]
[1760923347259,5.12316803,185.39,185.34,2.69]
[1760923347558,9.37337287,185.38,185.34,2.69]
[1760923347754,4.25020484,185.37,185.35,2.69]
[1760923347961,5.12215465,185.4,185.35,2.69]
[1760923348254,9.37221239,185.39,185.36,47.81]
[1760923348455,5.01141726,185.44,185.37,2.69]
[1760923348656,9.36625917,185.43,185.38,2.0928616]
[1760923348858,5.01141726,185.49,185.42,2.69]
[1760923349161,6.62067136,185.51,185.42,2.69]
[1760923349162,9.36298266,185.48,185.46,2.69]
[1760923349360,4.24645619,185.47,185.43,2.69]
[1760923349554,4.24645619,185.46,185.43,2.69]
[1760923349755,4.24055148,185.45,185.42,45.12]
[1760923349959,1.41,185.46,185.42,45.12]
[1760923350259,4.23621883,185.46,185.42,45.12]
[1760923350555,4.23621883,185.47,185.43,2.0928616]
[1760923350756,9.33998309,185.5,185.43,2.69]
[1760923350957,9.33998309,185.49,185.39,7.5429]
[1760923351157,10.74998309,185.48,185.39,9.85]
[1760923351356,1.41,185.46,185.35,2.69]
[1760923351660,1.41,185.44,185.34,6.06]
[1760923351851,9.33998309,185.43,185.34,6.06]
[1760923352163,4.23621883,185.42,185.34,6.06]
[1760923352357,4.23621883,185.41,185.34,6.06]
[1760923352657,5.64621883,185.4,185.33,2.69]
[1760923352854,5.64621883,185.4,185.32,16.44]
[1760923352855,4.23621883,185.39,185.32,16.44]
[1760923353061,4.23621883,185.38,185.32,16.44]
[1760923353250,4.23621883,185.39,185.33,2.69]
[1760923353557,1.41,185.48,185.33,2.69]